[Event "TePe Sigeman Co 2024"]
[Site "Malmo"]
[Date "2024.04.29"]
[Round "3.4"]
[White "Erigaisi Arjun"]
[Black "Maurizzi, Marc`Andria"]
[Result "1-0"]
[ECO "D35"]
[WhiteElo "2756"]
[BlackElo "2605"]
[Annotator "TA"]
[PlyCount "135"]
[EventDate "2024.04.27"]
[EventType "tourn"]
[EventCountry "SWE"]
[SourceTitle "playchess.com"]
[Source "ChessBase"]
[SourceQuality "1"]
[TimeControl "40/5400+30:1800+30"]

{[%evp 57,135,150,139,146,181,155,220,164,156,0,170,167,186,186,255,250,239,104,191,102,182,182,316,189,189,189,188,158,165,165,225,241,241,240,306,302,304,294,481,466,502,502,478,470,455,455,522,514,506,598,637,620,662,587,29956,29958,29959,29961,29963,29962,29963,29964,29963,29965,29964,29966,29966,29967,29968,29968,29969,29968,29968,29968,29971,29972,29972,29971,29968,29969]} 1. d4 {[%emt 0:00:06]} d5 {[%emt 0:00:38]} 2. c4 {[%emt 0:00:07]} e6 {[%emt 0:00:03]} 3. Nf3 {[%emt 0:00:15]} Nf6 {[%emt 0:00:04]} 4. Nc3 {[%emt 0:00:06]} c6 {[%emt 0:00:09]} 5. cxd5 {[%emt 0:00:22]} exd5 {[%emt 0:00:04]} 6. Bf4 {[%emt 0:00:05]} Bf5 {[%emt 0:09:22]} 7. e3 {[%emt 0:02:28]} Nbd7 {[%emt 0:00:54] D35: Queen's Gambit Declined: Exchange Variation.} 8. h3 {[%emt 0:00:09] is cutting edge theory.} Bb4 {[%emt 0:05:19]} 9. Qb3 {[%emt 0:00:21]} Qb6 {[%emt 0:06:35]} 10. g4 {[%emt 0:00:21]} Bg6 {[%emt 0:15:20]} 11. Nh4 {[%emt 0:00:28]} Be7 $146 {[%emt 0:05:07]} ({Predecessor:} 11... a5 12. Nxg6 a4 13. Qc2 hxg6 14. Bg2 a3 15. O-O Qa5 16. Ne2 O-O 17. Rab1 Ra7 {1-0 Deac,B (2700)-Ter Sahakyan,S (2616) Airthings Masters Play In rapid 2023 (7)}) 12. Nxg6 {[%emt 0:06:57]} hxg6 {[%emt 0:00:26]} 13. f3 {[%emt 0:00:07]} Nf8 {[%emt 0:02:52]} 14. Bg3 {[%emt 0:20:37]} Ne6 {[%emt 0:00:52]} 15. Kf2 {[%emt 0:01:58]} Bd8 {[%emt 0:21:04]} 16. Kg2 {[%emt 0:06:07]} Bc7 {[%emt 0:00:44]} 17. Bf2 {[%emt 0:00:08]} Bd6 {[%emt 0:05:08]} 18. h4 {[%emt 0:07:09]} Qc7 {[%emt 0:01:04]} 19. Be2 {[%emt 0:01:41]} O-O {[%emt 0:01:14]} 20. Rae1 {[%emt 0:09:16]} b5 {[%emt 0:02:30]} 21. g5 {[%emt 0:06:50]} Nh5 {[%emt 0:00:26]} 22. f4 {[%emt 0:00:06]} Nhxf4+ {[%emt 0:07:52]} 23. exf4 {[%emt 0:00:14]} Nxf4+ {[%emt 0:00:01]} 24. Kf1 {[%emt 0:05:07]} b4 {[%emt 0:02:24]} 25. Nd1 {[%emt 0:01:03]} Rae8 {[%emt 0:02:31]} 26. Bf3 {[%emt 0:13:45]} Rxe1+ {[%emt 0:04:24]} 27. Bxe1 {[%emt 0:01:37]} Qc8 {[%emt 0:00:41]} 28. Bd2 {[%emt 0:01:49]} Qf5 {[%emt 0:01:30]} 29. Bxf4 {[%emt 0:03:03]} (29. Bxb4 $2 Bxb4 30. Kg1 $19) 29... Qxf4 {[%emt 0:00:04]} 30. Qe3 {[%emt 0:00:16]} Qf5 {[%emt 0:00:01]} 31. Kg2 {[%emt 0:00:46]} Qc2+ {[%emt 0:01:12]} (31... Bf4 $16 32. Qe7 Qc2+ 33. Nf2 b3 34. axb3 (34. Qxa7 Be3 $11) 34... Qd2) 32. Qe2 {[%emt 0:00:47]} Qf5 {[%emt 0:00:04]} 33. Qe3 $2 {[%emt 0:02:58]} ({White should try} 33. Qd2 $16) 33... Bf4 $2 {[%emt 0:00:34]} (33... Qc2+ $11 34. Nf2 Qxb2) 34. Qf2 $18 {[%emt 0:00:52]} Re8 {[%emt 0:00:46] [#]} 35. Re1 $1 {[%emt 0:00:32]} Rxe1 {[%emt 0:00:34]} (35... Re6 $142 36. Rxe6 Qxe6) 36. Qxe1 $18 {[%emt 0:00:04]} Kh7 {[%emt 0:00:39]} 37. Qe2 {[%emt 0:03:25]} (37. Qxb4 Qc2+ 38. Nf2 Be3 $16) (37. Qe8 $18 {has better winning chances.}) 37... Bd6 {[%emt 0:01:08] [#]} (37... Bc7 $16) 38. Qd2 {[%emt 0:00:05]} ({White should play} 38. Qe3 $1 $18) 38... a5 {[%emt 0:01:06]} (38... Bf4 $16 39. Qe2 (39. Qxb4 Qc2+ 40. Nf2 Be3 $16) 39... Bc7) 39. Nf2 $18 {[%emt 0:00:34]} Bc7 {[%emt 0:03:07]} (39... Qc8 $142 40. Bg4 Qb7) 40. Bd1 {[%emt 0:01:36]} (40. Bg4 $142 Qb1 41. b3) 40... Qe6 $18 {[%emt 0:01:10]} 41. Qd3 {[%emt 0:34:55]} Kg8 {[%emt 0:05:41]} 42. b3 {[%emt 0:00:00]} Qd6 {[%emt 0:04:05]} 43. Ng4 {[%emt 0:00:00]} Qe6 {[%emt 0:05:37]} (43... Qf4 $142 44. Qe3 Qxe3 45. Nxe3 Kf8) 44. Qe2 $18 {[%emt 0:00:00]} Qd7 {[%emt 0:01:09]} 45. Qe3 {[%emt 0:00:00]} Bb6 {[%emt 0:01:18]} 46. Ne5 {[%emt 0:00:00]} Qe7 {[%emt 0:00:32]} 47. Qf4 {[%emt 0:00:00]} Qe8 $2 {[%emt 0:02:17]} (47... Bc7 {was called for.} 48. h5 gxh5 49. Bxh5 g6) 48. h5 $18 {[%emt 0:00:00]} gxh5 {[%emt 0:00:09]} 49. Bxh5 {[%emt 0:00:00]} g6 {[%emt 0:00:02]} 50. Bg4 {[%emt 0:00:00]} Bc7 {[%emt 0:01:12]} 51. Qf6 {[%emt 0:00:00]} Bd8 {[%emt 0:00:02]} 52. Qxc6 {[%emt 0:00:00]} Qxc6 {[%emt 0:00:06]} 53. Nxc6 {[%emt 0:00:00]} Bxg5 {[%emt 0:00:02]} 54. Nxa5 {[%emt 0:00:00]} Be7 {[%emt 0:00:31]} 55. Bf3 {[%emt 0:00:00]} f5 {[%emt 0:00:04]} 56. Bxd5+ {[%emt 0:00:00]} Kg7 {[%emt 0:00:02]} 57. Bc4 {[%emt 0:00:00]} Kf6 {[%emt 0:00:06]} 58. Nb7 {[%emt 0:00:00]} g5 {[%emt 0:01:05]} 59. d5 {[%emt 0:00:00]} Ke5 {[%emt 0:00:05]} 60. d6 {[%emt 0:00:00]} Bxd6 {[%emt 0:00:05]} 61. Nxd6 {[%emt 0:00:00]} Kxd6 {[%emt 0:00:03]} 62. Kf3 {[%emt 0:00:00]} Ke5 {[%emt 0:00:32]} 63. Ke3 {[%emt 0:00:00]} g4 {[%emt 0:10:34]} 64. Ba6 {[%emt 0:00:00]} f4+ {[%emt 0:00:21]} 65. Kd3 {[%emt 0:00:00]} f3 {[%emt 0:02:46]} 66. Ke3 {[%emt 0:00:00]} Kf5 {[%emt 0:00:01]} 67. Bc8+ {[%emt 0:00:00]} Kg5 {[%emt 0:00:02]} 68. Bb7 {[%emt 0:00:58]} 1-0

[Event "TePe Sigeman Co 2024"]
[Site "Malmo"]
[Date "2024.04.30"]
[Round "4.1"]
[White "Abdusattorov, Nodirbek"]
[Black "Grandelius, Nils"]
[Result "1-0"]
[ECO "C26"]
[WhiteElo "2765"]
[BlackElo "2664"]
[Annotator "TA"]
[PlyCount "77"]
[EventDate "2024.04.27"]
[EventType "tourn"]
[EventCountry "SWE"]
[SourceTitle "playchess.com"]
[Source "ChessBase"]
[SourceQuality "1"]
[TimeControl "40/5400+30:1800+30"]

{[%evp 12,76,-4,0,-12,-20,-22,-22,-9,-9,-7,-12,4,0,0,0,0,-13,-37,-43,-17,-11,-11,-14,-21,-7,0,0,76,27,8,0,12,0,0,0,7,16,18,31,55,60,43,32,114,117,188,179,193,166,429,424,681,654,1250,977,984,950,4994,4890,29992,29993,29996,29997,29998,29999,29999]} 1. e4 {[%emt 0:00:06]} e5 {[%emt 0:00:51]} 2. Nf3 {[%emt 0:00:13]} Nc6 {[%emt 0:00:09]} 3. g3 {[%emt 0:00:12]} Nf6 {[%emt 0:01:32]} 4. d3 {[%emt 0:00:06]} Bc5 {[%emt 0:01:44]} 5. Bg2 {[%emt 0:00:06]} d6 {[%emt 0:00:21]} 6. O-O {[%emt 0:00:16]} O-O {[%emt 0:00:08]} 7. Nc3 {[%emt 0:00:03]} a5 {[%emt 0:07:44]} 8. h3 {[%emt 0:00:09]} h6 {[%emt 0:03:17]} 9. Kh2 {[%emt 0:00:08]} Be6 {[%emt 0:06:47] The position is equal.} 10. Na4 {[%emt 0:02:10]} Ba7 {[%emt 0:03:51]} 11. c4 {[%emt 0:00:05]} Nd7 {[%emt 0:09:51]} 12. Nc3 {[%emt 0:01:42]} f5 {[%emt 0:08:38]} 13. exf5 {[%emt 0:02:26]} Bxf5 {[%emt 0:00:07][%cal Be6f5,Bf5h7,Bh7d3][%mdl 32]} 14. Nb5 {[%emt 0:00:58]} Bb6 {[%emt 0:04:48]} 15. Be3 {[%emt 0:02:25]} Bxe3 {[%emt 0:07:22]} 16. fxe3 {[%emt 0:00:03]} Bh7 {[%emt 0:00:10]} 17. d4 {[%emt 0:06:16]} Nb4 {[%emt 0:06:37] ...Nc2 would now be deadly.} 18. Qd2 {[%emt 0:12:18]} Bd3 {[%emt 0:05:42]} 19. Rfc1 {[%emt 0:00:13]} exd4 {[%emt 0:05:53]} (19... Bh7 $11) 20. exd4 {[%emt 0:02:34]} (20. a3 $16 Be4 21. axb4 Bxf3 22. Nxd4 Bxg2 23. Ne6) 20... Be4 $132 {[%emt 0:00:55][%mdl 2048] Black is not keeping still} 21. Nh4 {[%emt 0:00:36][%cal Bf3h4,Bh4f5,Bf5e7,Be7d5][%mdl 32]} Nf6 {[%emt 0:02:40]} 22. d5 {[%emt 0:06:21]} Bxg2 {[%emt 0:01:07]} 23. Qxg2 {[%emt 0:00:11]} c6 {[%emt 0:03:27]} 24. Nd4 {[%emt 0:01:00] White wants to play Ne6.} Qb6 {[%emt 0:00:38]} 25. Nhf5 {[%emt 0:03:31] Hoping for Ne6.} (25. Ne6 $2 Ng4+ 26. hxg4 Rf2 $19) 25... cxd5 {[%emt 0:05:48]} 26. Ne6 $1 {[%emt 0:00:25][%csl LRf8,LRg7][%cal Bd4e6,Be6g7,Bg7h5][%mdl 32]} Rf7 {[%emt 0:00:36] aiming for ...Re8.} 27. Rf1 $1 {[%emt 0:00:10] Threatens to win with Nexg7.} Nd3 {[%emt 0:09:30]} (27... Rc8 $14) 28. Nexg7 $16 {[%emt 0:10:02][%cal Og7h5] Black must now prevent Nh5! White is more active.} dxc4 {[%emt 0:01:26] [#]} (28... Kh7 $16) 29. Nh5 $1 $18 {[%emt 0:13:37][%mdl 512]} Kh7 {[%emt 0:00:54]} 30. Ne7 {[%emt 0:00:07]} (30. Nxh6 Kxh6 31. Nxf6 (31. Rxf6+ $2 Rxf6 32. Nxf6 Qxb2 $19) 31... Qxb2 32. Qxb2 Nxb2 $11) 30... Qd4 {[%emt 0:01:55]} (30... Rxe7 $2 31. Nxf6+ Kh8 32. Nd5 $18) (30... Ng4+ {was called for.} 31. hxg4 Rxe7) 31. Nd5 $1 {[%emt 0:01:31]} (31. Qxb7 $2 Ra7 32. Qf3 Raxe7 $19 (32... Qxb2+ 33. Kh1 $11)) 31... Nxd5 {[%emt 0:01:01]} (31... Ng4+ $142 32. hxg4 Raf8) 32. Rxf7+ {[%emt 0:00:05]} Kh8 {[%emt 0:00:22]} 33. Raf1 {[%emt 0:01:29][%cal Of1f6,Ba1f1,Bf1f4,Bf4h4][%mdl 32] R1f6! is the strong threat.} Ne5 {[%emt 0:00:34]} 34. Rxb7 {[%emt 0:05:06]} Ne3 {[%emt 0:00:30]} 35. Rf4 {[%emt 0:01:52]} Qd3 {[%emt 0:00:32] [#]} 36. Rh7+ $3 {[%emt 0:00:31][%mdl 512] White mates.} Kxh7 {[%emt 0:00:14][%cal Bh8h7,Bh7g6,Bg6h5][%mdl 32] [#]} (36... Qxh7 37. Qxa8+) 37. Qb7+ $1 {[%emt 0:00:06]} ({Inferior is} 37. Qxa8 Qe2+ 38. Kh1 Qd1+ 39. Kh2 Qd2+ (39... Qxh5 $2 {too greedy.} 40. Qa7+ Kg6 41. Qxe3 $18) 40. Kh1 Qc1+ (40... Qxb2 41. Nf6+ Kg7 42. Qg8#) 41. Kh2 Qxb2+ (41... Qd2+ 42. Kh1 $11) 42. Kh1 Qb1+ (42... Qxa2 43. Nf6+ Kg7 44. Qg8#) 43. Kh2 Qxa2+ 44. Kh1 Qb1+ 45. Kh2 Qc2+ 46. Kh1 Qd1+ 47. Kh2 Qc2+ (47... Qxh5 $2 48. Qa7+ Kg6 49. Qxe3 $18) (47... Qe2+ 48. Kg1 $11) 48. Kg1 Qc1+ 49. Kh2 Qb2+ (49... Qd2+ 50. Kg1 $11) 50. Kh1 Qa1+ 51. Kh2 Qa2+ 52. Kh1 Qa1+ (52... Qb1+ 53. Kh2 $11) 53. Kh2 Qb2+ 54. Kh1 Qa1+ $11) (37. Nf6+ $2 Kg6 38. Qxa8 Qd2+ 39. Kh1 Qe1+ 40. Kh2 Nf1+ 41. Kg1 Nxg3+ 42. Kh2 Kg5 (42... Qd2+ 43. Kxg3 Qe3+ 44. Rf3 $19) 43. Rg4+ Nxg4+ 44. Nxg4 Kf4 (44... Nf1+ $2 45. Kg2 $19) 45. Qf8+ Nf5 $19) 37... Kg6 {[%emt 0:00:16]} 38. Qg7+ {[%emt 0:00:04]} Kxh5 {[%emt 0:00:05]} 39. Rh4# {[%emt 0:00:03] Weighted Error Value: White=0.05 (flawless) /Black=0.59.  Mistake:       	White=1     	Black=5      Inaccurate:     	---       	Black=2      OK:         	White=9     	Black=9      Best:        	White=1     	---        Strong:       	White=3     	---} 1-0

[Event "TePe Sigeman Co 2024"]
[Site "Malmo"]
[Date "2024.04.30"]
[Round "4.2"]
[White "Keymer, Vincent"]
[Black "Ju, Wenjun"]
[Result "0-1"]
[ECO "D35"]
[WhiteElo "2726"]
[BlackElo "2559"]
[Annotator "TA"]
[PlyCount "138"]
[EventDate "2024.04.27"]
[EventType "tourn"]
[EventCountry "SWE"]
[SourceTitle "playchess.com"]
[Source "ChessBase"]
[SourceQuality "1"]
[TimeControl "40/5400+30:1800+30"]

{[%evp 65,138,-339,-258,-252,-259,-279,-259,-255,-232,-216,-243,-214,-158,-158,-156,-151,-142,-145,-137,-163,-154,-169,-149,-157,0,-143,-115,-131,-85,-83,-83,-90,-87,-289,-270,-202,-201,-212,-204,-200,-191,-196,-196,-196,-129,-187,-197,-197,-186,-158,-8,-8,-8,-8,-8,-8,-8,-8,-8,-8,-8,-18,-40,-29975,-29975,-29976,-29977,-29982,-29979,-29979,-29980,-29983,-29984,-29983,-29984]} 1. c4 {[%emt 0:00:03]} e6 {[%emt 0:00:09]} 2. Nc3 {[%emt 0:00:05]} d5 {[%emt 0:00:08]} 3. d4 {[%emt 0:00:05]} Nf6 {[%emt 0:00:08]} 4. cxd5 {[%emt 0:00:04]} exd5 {[%emt 0:00:04]} 5. Bg5 {[%emt 0:00:06]} c6 {[%emt 0:00:30]} 6. e3 {[%emt 0:00:06]} Bf5 {[%emt 0:00:20]} 7. Nge2 {[%emt 0:00:05] D35: Queen's Gambit Declined: Exchange Variation.} Be7 {[%emt 0:07:04]} 8. Ng3 {[%emt 0:02:02]} Be6 {[%emt 0:00:27]} 9. Bd3 {[%emt 0:01:57]} h6 {[%emt 0:06:47]} 10. Bf4 {[%emt 0:00:49]} O-O $146 {[%emt 0:01:19]} ({Predecessor:} 10... Bd6 11. Bxd6 Qxd6 12. Qc2 Nbd7 13. O-O-O O-O 14. h4 Rac8 15. Nf5 Bxf5 16. Bxf5 Kh8 {1-0 Arun Prasad,S (2423)-Babu,N (2333) Kolkata op 3rd 2008 (7)}) 11. Nf5 {[%emt 0:11:06]} Bxf5 {[%emt 0:08:29]} 12. Bxf5 {[%emt 0:00:11]} Bd6 {[%emt 0:00:03]} 13. Bg3 {[%emt 0:09:23]} Ne8 {[%emt 0:11:09]} 14. Qc2 {[%emt 0:07:24]} Nd7 {[%emt 0:01:04]} 15. O-O-O {[%emt 0:01:13]} Nb6 {[%emt 0:02:22]} 16. Bh7+ {[%emt 0:07:25]} Kh8 {[%emt 0:00:04]} 17. Bd3 {[%emt 0:00:04]} a5 {[%emt 0:00:40]} 18. Kb1 {[%emt 0:01:49]} a4 {[%emt 0:00:21]} 19. a3 {[%emt 0:00:19]} Qe7 {[%emt 0:11:08]} 20. Rde1 {[%emt 0:15:24]} Qf6 {[%emt 0:08:40]} 21. f3 {[%emt 0:01:44]} Nc7 {[%emt 0:08:06]} 22. Qf2 {[%emt 0:02:10]} Qd8 {[%emt 0:06:10]} 23. e4 {[%emt 0:06:26]} dxe4 {[%emt 0:00:49]} 24. Nxe4 {[%emt 0:02:08]} Be7 {[%emt 0:00:33]} 25. Be5 {[%emt 0:02:55]} Ne6 {[%emt 0:00:44]} 26. Qe3 {[%emt 0:05:08]} f6 {[%emt 0:01:29]} 27. Nc5 {[%emt 0:06:54]} Bxc5 {[%emt 0:01:35]} 28. dxc5 {[%emt 0:01:38]} Nd5 {[%emt 0:00:42]} 29. Qe4 {[%emt 0:03:20]} Ng5 {[%emt 0:00:09]} 30. Qc4 {[%emt 0:01:28]} fxe5 {[%emt 0:00:09]} 31. Rxe5 {[%emt 0:00:10]} Re8 {[%emt 0:11:30]} 32. Rhe1 {[%emt 0:01:23]} Rxe5 {[%emt 0:06:52]} 33. Rxe5 {[%emt 0:00:01]} b5 {[%emt 0:00:11]} 34. cxb6 {[%emt 0:00:48]} Qxb6 {[%emt 0:01:47]} 35. Re2 {[%emt 0:04:02]} Rb8 {[%emt 0:01:28]} 36. Ka1 {[%emt 0:03:26]} Qb3 {[%emt 0:01:46]} 37. Qxb3 {[%emt 0:00:04]} axb3 {[%emt 0:00:02]} 38. Bc4 {[%emt 0:00:01]} Nf7 {[%emt 0:01:42]} 39. Re6 {[%emt 0:01:13]} g5 {[%emt 0:01:36]} 40. g3 {[%emt 0:03:47]} Kg7 {[%emt 0:00:41]} 41. Kb1 {[%emt 0:30:42]} Rb7 {[%emt 0:13:58]} 42. Kc1 {[%emt 0:00:00]} h5 {[%emt 0:02:01]} 43. Kd2 {[%emt 0:00:00]} Rd7 {[%emt 0:02:44]} 44. Kc1 {[%emt 0:00:00]} Rb7 {[%emt 0:01:59]} 45. Kd2 $1 {[%emt 0:00:00]} h4 {[%emt 0:01:12]} 46. Rxc6 {[%emt 0:00:00]} Ne5 {[%emt 0:00:16]} (46... Rd7 $142 47. Bxd5 Rxd5+ 48. Kc3 Ne5 49. Rc7+ Kf6 50. gxh4 gxh4 (50... Nxf3 51. hxg5+ Nxg5 52. Kxb3 $11) (50... Rd3+ 51. Kb4 $17) 51. Kxb3 Kg5 (51... Nxf3 52. Rc3 $17)) 47. Rc5 $17 {[%emt 0:00:00]} (47. Bxd5 Nxc6 48. Bxc6 Rc7) 47... Nxc4+ {[%emt 0:00:08]} (47... Nxf3+ $2 48. Ke2 Nxh2 (48... hxg3 49. hxg3 Ng1+ 50. Kf1 $11) 49. Bxd5 (49. Rxd5 Re7+ 50. Kd3 h3 $11) 49... Re7+ 50. Kd3 hxg3 51. Bg2 $19) 48. Rxc4 {[%emt 0:00:00]} h3 {[%emt 0:03:25]} 49. Kd3 $2 {[%emt 0:00:00]} (49. a4 $17) 49... Rd7 $19 {[%emt 0:01:34]} 50. Rd4 {[%emt 0:00:00]} Kf6 {[%emt 0:01:04]} 51. a4 {[%emt 0:00:00]} Ke5 {[%emt 0:00:33]} 52. Re4+ {[%emt 0:00:00]} Kd6 $1 {[%emt 0:00:55]} 53. Kc4 {[%emt 0:02:02]} Rb7 $1 {[%emt 0:02:36]} 54. a5 {[%emt 0:00:01]} Rb4+ {[%emt 0:02:43]} 55. Kd3 {[%emt 0:00:01]} Kc5 $1 {[%emt 0:00:09]} 56. Rxb4 {[%emt 0:04:35]} Nxb4+ {[%emt 0:00:03]} 57. Ke4 {[%emt 0:01:12] [#]} Kb5 {[%emt 0:00:18]} (57... Kc4 $1 $17 {aiming for ...Nd3.} 58. f4 gxf4) 58. f4 $1 $11 {[%emt 0:00:16]} gxf4 {[%emt 0:00:04]} (58... Kxa5 $2 {too greedy.} 59. fxg5 Kb6 60. g6 $18) 59. gxf4 {[%emt 0:00:23]} Kxa5 {[%emt 0:00:20]} 60. f5 {[%emt 0:00:09]} Nc6 {[%emt 0:00:21]} 61. Kd5 {[%emt 0:02:14]} Nd8 {[%emt 0:00:52]} 62. Kc4 {[%emt 0:00:18]} Ka4 {[%emt 0:00:04]} 63. f6 {[%emt 0:00:11]} Nf7 {[%emt 0:00:05]} 64. Kc5 $2 {[%emt 0:00:13][%mdl 8192]} (64. Kd4 $15 Kb5 65. Kc3) 64... Nh6 {[%emt 0:02:07]} 65. Kd5 {[%emt 0:01:39] [#]} Kb5 $1 {[%emt 0:00:06]} 66. Ke5 {[%emt 0:00:35]} Kc4 {[%emt 0:01:30]} 67. Ke4 {[%emt 0:00:17]} Nf7 {[%emt 0:00:22]} 68. Kf5 {[%emt 0:00:24]} Kd3 {[%emt 0:00:11]} 69. Kg6 {[%emt 0:00:45]} Nd6 {[%emt 0:00:05]} 0-1

[Event "TePe Sigeman Co 2024"]
[Site "Malmo"]
[Date "2024.04.30"]
[Round "4.3"]
[White "Korobov, Anton"]
[Black "Erigaisi Arjun"]
[Result "1/2-1/2"]
[ECO "D46"]
[WhiteElo "2651"]
[BlackElo "2756"]
[Annotator "TA"]
[PlyCount "88"]
[EventDate "2024.04.27"]
[EventType "tourn"]
[EventCountry "SWE"]
[SourceTitle "playchess.com"]
[Source "ChessBase"]
[SourceQuality "1"]
[TimeControl "40/5400+30:1800+30"]

{[%evp 14,88,0,0,12,0,0,0,0,0,0,0,0,0,0,-1,44,41,35,40,36,0,6,6,9,0,0,0,12,10,14,16,14,14,27,0,0,0,8,8,5,6,8,0,0,0,0,0,0,0,0,0,0,0,0,0,0,0,0,0,0,0,0,0,0,0,0,0,0,0,0,0,0,0,0,0,0]} 1. c4 {[%emt 0:00:05]} c6 {[%emt 0:00:06]} 2. Nf3 {[%emt 0:00:40]} d5 {[%emt 0:00:06]} 3. e3 {[%emt 0:00:07]} Nf6 {[%emt 0:00:06]} 4. Nc3 {[%emt 0:00:06]} e6 {[%emt 0:00:05]} 5. b3 {[%emt 0:00:28]} Bd6 {[%emt 0:00:30]} 6. Bb2 {[%emt 0:00:40]} O-O {[%emt 0:01:06]} 7. d4 {[%emt 0:00:12]} Nbd7 {[%emt 0:01:02]} 8. Bd3 {[%emt 0:00:18]} Re8 {[%emt 0:02:45]} 9. Qc2 {[%emt 0:11:21]} e5 {[%emt 0:02:26] [#] White must now prevent ...e4.} 10. cxd5 {[%emt 0:00:53]} cxd5 {[%emt 0:00:06]} 11. dxe5 {[%emt 0:04:44]} Nxe5 {[%emt 0:00:20]} 12. Nxe5 {[%emt 0:01:35]} Bxe5 {[%emt 0:00:17]} 13. Ne2 {[%emt 0:00:37]} d4 {[%emt 0:19:13]} 14. e4 {[%emt 0:08:19]} Qd6 {[%emt 0:23:52][%cal Of6h5]} (14... Bd6 $5) 15. Qd2 {[%emt 0:05:03] f4 would now be deadly.} Bxh2 {[%emt 0:03:28]} 16. f3 {[%emt 0:01:36][%cal Oe1c1]} (16. Nxd4 $2 {perishes.} Nxe4 17. Bxe4 Rxe4+ 18. Kf1 Bf5 19. Rxh2 Qxh2 $19) 16... Nh5 {[%emt 0:04:59]} 17. O-O-O {[%emt 0:14:32]} Ng3 $132 {[%emt 0:05:20][%mdl 2048] Black is not holding back} 18. Nxg3 {[%emt 0:00:52]} Bxg3 {[%emt 0:00:04]} 19. Kb1 $1 {[%emt 0:06:33][%cal Oh1h7] Active counter play!} h6 {[%emt 0:00:04]} 20. Bc4 {[%emt 0:01:37]} Be6 {[%emt 0:02:45]} 21. Bxe6 {[%emt 0:01:41]} ({Don't take} 21. Qxd4 Qxd4 22. Rxd4 Bxc4 23. Rxc4 Rad8 $16) 21... Rxe6 {[%emt 0:00:04]} 22. Qxd4 {[%emt 0:01:32]} Qxd4 {[%emt 0:00:05]} 23. Rxd4 {[%emt 0:02:50]} Be5 {[%emt 0:00:16]} 24. Rd2 {[%emt 0:00:43]} Bxb2 {[%emt 0:01:04] The position is equal.} 25. Kxb2 $11 {[%emt 0:00:03][%mdl 4096] Endgame. KRR-KRR} Kf8 {[%emt 0:04:57]} 26. Rc1 {[%emt 0:01:59]} Ke8 {[%emt 0:00:35] Inhibits Rd7.} 27. Rc7 {[%emt 0:03:22]} Re7 {[%emt 0:00:12] Repels Rdd7} 28. Rc5 {[%emt 0:00:35]} Rd8 {[%emt 0:02:56]} 29. Kc3 {[%emt 0:00:32]} b6 {[%emt 0:02:51]} 30. Rc4 {[%emt 0:01:17]} Red7 {[%emt 0:03:34]} 31. Rxd7 {[%emt 0:00:12]} Rxd7 {[%emt 0:00:05] KR-KR} 32. Rc8+ {[%emt 0:02:03]} Ke7 {[%emt 0:00:05]} 33. a4 {[%emt 0:00:29]} h5 {[%emt 0:01:00]} 34. b4 {[%emt 0:01:22]} g5 {[%emt 0:03:56]} 35. Rh8 {[%emt 0:07:26]} h4 {[%emt 0:00:13]} 36. f4 {[%emt 0:00:12]} Rc7+ {[%emt 0:03:59]} 37. Kb3 {[%emt 0:01:21]} gxf4 {[%emt 0:03:17]} 38. Rxh4 {[%emt 0:01:35]} Ke6 {[%emt 0:00:05]} 39. Rxf4 {[%emt 0:00:23]} Ke5 {[%emt 0:00:04]} 40. g3 {[%emt 0:01:14]} Kd4 {[%emt 0:00:59]} 41. b5 {[%emt 0:32:44]} Rc3+ {[%emt 0:31:18]} 42. Kb4 {[%emt 0:00:08] [#] e5+ is the strong threat.} Rc4+ {[%emt 0:00:04]} 43. Kb3 {[%emt 0:00:03] Strongly threatening e5+.} Rc3+ {[%emt 0:00:05]} 44. Kb4 {[%emt 0:00:05] aiming for e5+.} Rc4+ {[%emt 0:00:03] Weighted Error Value: White=0.03 (flawless) /Black=0.03 (flawless) .  Inaccurate:     	White=2     	Black=1      OK:         	White=17    	Black=23     Best:        	---       	Black=1      Strong:       	White=1     	---} 1/2-1/2

[Event "TePe Sigeman Co 2024"]
[Site "Malmo"]
[Date "2024.04.30"]
[Round "4.4"]
[White "Maurizzi, Marc`Andria"]
[Black "Svidler, Peter"]
[Result "1/2-1/2"]
[ECO "C88"]
[WhiteElo "2605"]
[BlackElo "2689"]
[Annotator "TA"]
[PlyCount "57"]
[EventDate "2024.04.27"]
[EventType "tourn"]
[EventCountry "SWE"]
[SourceTitle "playchess.com"]
[Source "ChessBase"]
[SourceQuality "1"]
[TimeControl "40/5400+30:1800+30"]

{[%evp 19,57,15,21,0,0,0,0,0,0,0,0,6,0,0,48,37,31,24,57,15,12,10,21,0,0,0,0,0,0,0,0,0,0,0,0,0,0,0,0,0]} 1. e4 {[%emt 0:00:02]} e5 {[%emt 0:00:38]} 2. Nf3 {[%emt 0:00:12]} Nc6 {[%emt 0:00:02]} 3. Bb5 {[%emt 0:00:03]} a6 {[%emt 0:00:41]} 4. Ba4 {[%emt 0:00:13]} Nf6 {[%emt 0:01:25]} 5. O-O {[%emt 0:00:14]} Be7 {[%emt 0:03:31]} 6. Re1 {[%emt 0:00:04]} b5 {[%emt 0:00:28]} 7. Bb3 {[%emt 0:00:01]} O-O {[%emt 0:00:10]} 8. a4 {[%emt 0:00:15]} b4 {[%emt 0:02:07]} 9. d4 {[%emt 0:00:03]} d6 {[%emt 0:00:09]} 10. dxe5 {[%emt 0:00:03]} dxe5 {[%emt 0:00:28]} 11. Bg5 {[%emt 0:00:03]} Qxd1 {[%emt 0:18:09]} 12. Rxd1 {[%emt 0:00:01]} Nxe4 {[%emt 0:00:26]} 13. Bxe7 {[%emt 0:03:27]} Nxe7 {[%emt 0:00:23]} 14. Nxe5 {[%emt 0:00:18]} Nc5 {[%emt 0:00:43]} 15. Nd2 {[%emt 0:00:11]} Bf5 {[%emt 0:02:41]} 16. Bc4 {[%emt 0:05:26]} Bxc2 {[%emt 0:07:50]} (16... Rad8 $11 17. Ndf3 Rxd1+ (17... Bxc2 18. Bxf7+ Kh8 19. Re1 $14) 18. Rxd1 Nxa4 19. Nxf7 Nxb2 20. Nh6+ Kh8 21. Nf7+ Kg8 22. Nh6+ Kh8 23. Nf7+ Kg8) 17. Rdc1 $14 {[%emt 0:00:15]} b3 {[%emt 0:00:11]} 18. Ra3 {[%emt 0:08:44][%cal Rd2b3]} Rab8 {[%emt 0:07:56][%cal Ba8b8,Bb8b4,Bb4e4][%mdl 32]} 19. h3 {[%emt 0:10:22]} ({But not} 19. Bxb3 $6 Bxb3 20. Rxc5 Rfd8 $11 (20... Be6 21. Nd3 $11)) (19. Bf1 $5) 19... h6 {[%emt 0:20:40] The position is equal.} 20. Ndf3 {[%emt 0:20:56]} Rb4 {[%emt 0:04:57]} 21. Bxb3 {[%emt 0:12:10]} Bxb3 {[%emt 0:01:55]} (21... Rxb3 {simplifies} 22. Rxc2 Rxa3 23. bxa3 Ne6) 22. Rxc5 {[%emt 0:00:06]} Bxa4 {[%emt 0:00:21]} 23. Nd3 {[%emt 0:03:58] A dynamic duo of knights.} Re4 {[%emt 0:00:59]} 24. Rxc7 {[%emt 0:01:14] [#] Black must now prevent Nc5.} Nd5 {[%emt 0:02:12]} 25. Rc5 {[%emt 0:05:40]} Rd8 {[%emt 0:02:11]} 26. Nd2 {[%emt 0:00:17]} Rd4 {[%emt 0:00:04] Hoping for ...Bb5.} 27. Nf3 {[%emt 0:00:06]} Re4 {[%emt 0:00:02]} 28. Nd2 {[%emt 0:00:06]} Rd4 {[%emt 0:00:02] [#] ...Bb5 would now be deadly.} 29. Nf3 {[%emt 0:00:05] Weighted Error Value: White=0.06 (flawless) /Black=0.06 (flawless) .  Mistake:       	---       	Black=1      Inaccurate:     	White=1     	Black=1      OK:         	White=7     	Black=11     Best:        	White=1     	---} 1/2-1/2